[Event "Allsvenskan Div I 3 2021/2022: SS Manhem - Linköpings ASS"]
[Site "Schackcentrum, Vegatan 20, Gothenburg, Sweden"]
[Date "2022.04.09"]
[Round "1.1"]
[White "Andersson, Mats"]
[Black "Akesson, Joel"]
[Result "1/2-1/2"]
[TimeControl "90 minutes for 40 moves + 30 minutes for the rest of the game + 30 seconds per move from move one."]
[WhiteTitle "FM"]
[BlackTitle "FM"]
[WhiteFideId "1700561"]
[BlackFideId "1705040"]
[WhiteElo "2316"]
[BlackElo "2222"]

1. d4 {[%clk 01:30:53]} {[%emt 00:00:07]} d5 {[%clk 01:30:49]} {[%emt
00:00:12]} 2. c4 {[%clk 01:30:36]} {[%emt 00:00:46]} c6 {[%clk 01:30:59]}
{[%emt 00:00:19]} 3. cxd5 {[%clk 01:28:35]} {[%emt 00:02:32]} cxd5 {[%clk
01:31:05]} {[%emt 00:00:23]} 4. Nc3 {[%clk 01:28:52]} {[%emt 00:00:13]} Nc6
{[%clk 01:29:26]} {[%emt 00:02:08]} 5. Nf3 {[%clk 01:26:22]} {[%emt 00:03:00]}
Nf6 {[%clk 01:28:41]} {[%emt 00:01:15]} 6. Bf4 {[%clk 01:26:45]} {[%emt
00:00:07]} a6 {[%clk 01:27:16]} {[%emt 00:01:55]} 7. Rc1 {[%clk 01:25:06]}
{[%emt 00:02:08]} Bf5 {[%clk 01:14:45]} {[%emt 00:13:02]} 8. e3 {[%clk
01:17:56]} {[%emt 00:07:40]} e6 {[%clk 01:06:58]} {[%emt 00:08:17]} 9. Ne5
{[%clk 01:15:08]} {[%emt 00:03:17]} Nxe5 {[%clk 00:53:12]} {[%emt 00:14:17]} 10.
Bxe5 {[%clk 01:14:15]} {[%emt 00:01:23]} Nd7 {[%clk 00:46:13]} {[%emt
00:07:28]} 11. Bg3 {[%clk 01:13:30]} {[%emt 00:01:16]} Qb6 {[%clk 00:35:48]}
{[%emt 00:10:55]} 12. Qd2 {[%clk 00:55:48]} {[%emt 00:18:12]} Rc8 {[%clk
00:29:22]} {[%emt 00:06:56]} 13. Be2 {[%clk 00:47:18]} {[%emt 00:09:00]} Be7
{[%clk 00:24:52]} {[%emt 00:05:00]} 14. O-O {[%clk 00:46:22]} {[%emt 00:01:26]}
O-O {[%clk 00:24:04]} {[%emt 00:01:18]} 15. a3 {[%clk 00:39:11]} {[%emt
00:07:41]} Qa7 {[%clk 00:20:23]} {[%emt 00:04:56]} 1/2-1/2

[Event "Allsvenskan Div I 3 2021/2022: SS Manhem - Linköpings ASS"]
[Site "Schackcentrum, Vegatan 20, Gothenburg, Sweden"]
[Date "2022.04.09"]
[Round "1.2"]
[White "Welin, Mats"]
[Black "Pepic, Rizo"]
[Result "1-0"]
[TimeControl "90 minutes for 40 moves + 30 minutes for the rest of the game + 30 seconds per move from move one."]
[WhiteTitle "FM"]
[WhiteFideId "1705180"]
[BlackFideId "906760"]
[WhiteElo "2329"]
[BlackElo "2218"]

1. e4 {[%clk 01:30:49]} {[%emt 00:00:09]} e5 {[%clk 01:30:28]} {[%emt
00:00:33]} 2. Nf3 {[%clk 01:30:57]} {[%emt 00:00:23]} d6 {[%clk 01:30:32]}
{[%emt 00:00:26]} 3. d4 {[%clk 01:31:03]} {[%emt 00:00:23]} Nf6 {[%clk
01:30:48]} {[%emt 00:00:14]} 4. dxe5 {[%clk 01:30:57]} {[%emt 00:00:37]} Nxe4
{[%clk 01:31:03]} {[%emt 00:00:14]} 5. Qd5 {[%clk 01:30:32]} {[%emt 00:00:55]}
Nc5 {[%clk 01:31:07]} {[%emt 00:00:26]} 6. Bg5 {[%clk 01:30:25]} {[%emt
00:00:38]} Be7 {[%clk 01:30:50]} {[%emt 00:00:46]} 7. exd6 {[%clk 01:30:24]}
{[%emt 00:00:31]} Qxd6 {[%clk 01:31:17]} {[%emt 00:00:03]} 8. Nc3 {[%clk
01:30:45]} {[%emt 00:00:09]} f6 {[%clk 00:15:34]} {[%emt 01:16:13]} 9. Be3
{[%clk 01:29:02]} {[%emt 00:02:13]} Ne6 {[%clk 00:11:04]} {[%emt 00:05:00]} 10.
O-O-O {[%clk 01:27:18]} {[%emt 00:02:14]} Qxd5 {[%clk 00:11:09]} {[%emt
00:00:25]} 11. Nxd5 {[%clk 01:27:03]} {[%emt 00:00:45]} c6 {[%clk 00:02:53]}
{[%emt 00:08:46]} 12. Nxe7 {[%clk 01:25:26]} {[%emt 00:02:08]} Kxe7 {[%clk
00:03:20]} {[%emt 00:00:02]} 13. Bc4 {[%clk 01:24:59]} {[%emt 00:00:57]} Rd8
{[%clk 00:02:55]} {[%emt 00:00:54]} 14. Nd4 {[%clk 01:23:49]} {[%emt 00:01:41]}
Nxd4 {[%clk 00:00:46]} {[%emt 00:02:39]} 15. Bxd4 {[%clk 01:24:02]} {[%emt
00:00:16]} Rd7 {[%clk 00:01:04]} {[%emt 00:00:12]} 16. Rhe1+ {[%clk 01:23:13]}
{[%emt 00:01:20]} Kd8 {[%clk 00:01:30]} {[%emt 00:00:03]} 17. Be6 {[%clk
01:53:05]} {[%emt 00:02:22]} 1-0

[Event "Allsvenskan Div I 3 2021/2022: SS Manhem - Linköpings ASS"]
[Site "Schackcentrum, Vegatan 20, Gothenburg, Sweden"]
[Date "2022.04.09"]
[Round "1.3"]
[White "Fransson, Jorgen"]
[Black "Fendrich, David"]
[Result "1-0"]
[TimeControl "90 minutes for 40 moves + 30 minutes for the rest of the game + 30 seconds per move from move one."]
[WhiteFideId "1701827"]
[BlackFideId "1705725"]
[WhiteElo "2147"]
[BlackElo "2186"]

1. d4 {[%clk 01:30:56]} {[%emt 00:00:03]} e6 {[%clk 01:30:45]} {[%emt
00:00:16]} 2. Nf3 {[%clk 01:31:09]} {[%emt 00:00:16]} c5 {[%clk 01:30:29]}
{[%emt 00:00:47]} 3. c4 {[%clk 01:31:02]} {[%emt 00:00:38]} cxd4 {[%clk
01:30:44]} {[%emt 00:00:16]} 4. Nxd4 {[%clk 01:31:24]} {[%emt 00:00:07]} a6
{[%clk 01:26:36]} {[%emt 00:04:38]} 5. g3 {[%clk 01:30:35]} {[%emt 00:01:19]}
Qc7 {[%clk 01:25:59]} {[%emt 00:01:08]} 6. b3 {[%clk 01:27:37]} {[%emt
00:03:28]} Nf6 {[%clk 01:25:05]} {[%emt 00:01:24]} 7. Bg2 {[%clk 01:27:05]}
{[%emt 00:01:01]} Be7 {[%clk 01:24:50]} {[%emt 00:00:45]} 8. O-O {[%clk
01:27:17]} {[%emt 00:00:18]} O-O {[%clk 01:25:01]} {[%emt 00:00:20]} 9. Bb2
{[%clk 01:27:10]} {[%emt 00:00:35]} d6 {[%clk 01:22:05]} {[%emt 00:03:27]} 10.
Nc3 {[%clk 01:26:55]} {[%emt 00:00:45]} Nbd7 {[%clk 01:21:27]} {[%emt
00:01:08]} 11. Qd2 {[%clk 01:23:54]} {[%emt 00:03:30]} Re8 {[%clk 01:16:47]}
{[%emt 00:05:10]} 12. Rac1 {[%clk 01:21:36]} {[%emt 00:02:49]} Bf8 {[%clk
01:14:46]} {[%emt 00:02:31]} 13. Rfd1 {[%clk 01:20:22]} {[%emt 00:01:44]} Rb8
{[%clk 01:04:52]} {[%emt 00:10:24]} 14. h3 {[%clk 01:08:50]} {[%emt 00:12:00]}
Nc5 {[%clk 00:41:05]} {[%emt 00:24:18]} 15. Kh2 {[%clk 00:56:38]} {[%emt
00:12:43]} Bd7 {[%clk 00:37:21]} {[%emt 00:04:15]} 16. Qc2 {[%clk 00:52:58]}
{[%emt 00:04:09]} b6 {[%clk 00:18:58]} {[%emt 00:18:53]} 17. b4 {[%clk
00:44:31]} {[%emt 00:08:57]} Nb7 {[%clk 00:19:08]} {[%emt 00:00:20]} 18. Ne4
{[%clk 00:44:27]} {[%emt 00:00:33]} Nxe4 {[%clk 00:18:57]} {[%emt 00:00:42]} 19.
Bxe4 {[%clk 00:39:14]} {[%emt 00:05:44]} h6 {[%clk 00:15:56]} {[%emt 00:03:30]}
20. Qb3 {[%clk 00:38:33]} {[%emt 00:01:10]} Nd8 {[%clk 00:14:35]} {[%emt
00:01:53]} 21. Qf3 {[%clk 00:33:18]} {[%emt 00:05:45]} f5 {[%clk 00:14:00]}
{[%emt 00:01:05]} 22. Bb1 {[%clk 00:33:30]} {[%emt 00:00:17]} Nc6 {[%clk
00:13:45]} {[%emt 00:00:45]} 23. e4 {[%clk 00:32:16]} {[%emt 00:01:44]} Nxd4
{[%clk 00:12:55]} {[%emt 00:01:20]} 24. Bxd4 {[%clk 00:31:52]} {[%emt
00:00:53]} Qb7 {[%clk 00:12:01]} {[%emt 00:01:25]} 25. Qe3 {[%clk 00:18:21]}
{[%emt 00:14:01]} d5 {[%clk 00:11:51]} {[%emt 00:00:39]} 26. exf5 {[%clk
00:17:15]} {[%emt 00:01:36]} exf5 {[%clk 00:11:33]} {[%emt 00:00:48]} 27. Qc3
{[%clk 00:11:11]} {[%emt 00:06:34]} dxc4 {[%clk 00:10:04]} {[%emt 00:01:59]} 28.
Qxc4+ {[%clk 00:10:53]} {[%emt 00:00:48]} Be6 {[%clk 00:10:25]} {[%emt
00:00:09]} 29. Qc3 {[%clk 00:10:33]} {[%emt 00:00:49]} Rbc8 {[%clk 00:09:43]}
{[%emt 00:01:13]} 30. Qb2 {[%clk 00:10:51]} {[%emt 00:00:12]} b5 {[%clk
00:04:27]} {[%emt 00:05:46]} 31. a3 {[%clk 00:09:53]} {[%emt 00:01:29]} f4
{[%clk 00:03:48]} {[%emt 00:01:09]} 32. Bc5 {[%clk 00:08:57]} {[%emt 00:01:25]}
fxg3+ {[%clk 00:04:01]} {[%emt 00:00:17]} 33. fxg3 {[%clk 00:09:17]} {[%emt
00:00:10]} Bxc5 {[%clk 00:03:21]} {[%emt 00:01:11]} 34. bxc5 {[%clk 00:09:40]}
{[%emt 00:00:07]} Bd5 {[%clk 00:02:23]} {[%emt 00:01:27]} 35. Rxd5 {[%clk
00:09:51]} {[%emt 00:00:19]} 1-0

[Event "Allsvenskan Div I 3 2021/2022: SS Manhem - Linköpings ASS"]
[Site "Schackcentrum, Vegatan 20, Gothenburg, Sweden"]
[Date "2022.04.09"]
[Round "1.4"]
[White "Troedsson, Anton"]
[Black "Carlsson, Ingvar"]
[Result "1-0"]
[TimeControl "90 minutes for 40 moves + 30 minutes for the rest of the game + 30 seconds per move from move one."]
[WhiteFideId "1746006"]
[BlackFideId "1702670"]
[WhiteElo "2119"]
[BlackElo "2043"]

1. Nf3 {[%clk 01:30:13]} {[%emt 00:00:46]} f5 {[%clk 01:30:40]} {[%emt
00:00:20]} 2. b3 {[%clk 01:30:00]} {[%emt 00:00:43]} Nf6 {[%clk 01:30:46]}
{[%emt 00:00:24]} 3. Bb2 {[%clk 01:30:00]} {[%emt 00:00:30]} g6 {[%clk
01:30:57]} {[%emt 00:00:19]} 4. g3 {[%clk 01:27:42]} {[%emt 00:02:49]} Bg7
{[%clk 01:31:08]} {[%emt 00:00:19]} 5. Bg2 {[%clk 01:28:03]} {[%emt 00:00:09]}
d6 {[%clk 01:31:07]} {[%emt 00:00:30]} 6. d4 {[%clk 01:28:11]} {[%emt
00:00:23]} O-O {[%clk 01:29:25]} {[%emt 00:02:12]} 7. O-O {[%clk 01:27:07]}
{[%emt 00:01:35]} Qe8 {[%clk 01:26:18]} {[%emt 00:03:36]} 8. c4 {[%clk
01:25:44]} {[%emt 00:01:54]} Na6 {[%clk 01:18:19]} {[%emt 00:08:29]} 9. Nc3
{[%clk 01:03:42]} {[%emt 00:22:32]} e5 {[%clk 01:01:39]} {[%emt 00:17:10]} 10.
dxe5 {[%clk 00:58:23]} {[%emt 00:05:49]} dxe5 {[%clk 01:01:53]} {[%emt
00:00:15]} 11. e4 {[%clk 00:57:29]} {[%emt 00:01:25]} f4 {[%clk 00:23:18]}
{[%emt 00:39:05]} 12. Nd5 {[%clk 00:52:36]} {[%emt 00:05:22]} Nh5 {[%clk
00:21:46]} {[%emt 00:02:01]} 13. Ba3 {[%clk 00:38:23]} {[%emt 00:14:44]} Rf7
{[%clk 00:09:04]} {[%emt 00:13:11]} 14. Ng5 {[%clk 00:29:22]} {[%emt 00:09:31]}
Rd7 {[%clk 00:09:09]} {[%emt 00:00:26]} 15. Bh3 {[%clk 00:29:17]} {[%emt
00:00:35]} Rd8 {[%clk 00:09:16]} {[%emt 00:00:22]} 16. Bxc8 {[%clk 00:28:20]}
{[%emt 00:01:28]} Raxc8 {[%clk 00:08:11]} {[%emt 00:01:34]} 17. Ne7+ {[%clk
00:26:56]} {[%emt 00:01:55]} Kh8 {[%clk 00:06:57]} {[%emt 00:01:42]} 18. Qg4
{[%clk 00:26:43]} {[%emt 00:00:43]} Ra8 {[%clk 00:05:12]} {[%emt 00:02:15]} 19.
Qe6 {[%clk 00:25:35]} {[%emt 00:01:38]} Bf6 {[%clk 00:02:16]} {[%emt 00:03:28]}
20. Nf7+ {[%clk 00:25:21]} {[%emt 00:00:44]} Kg7 {[%clk 00:02:42]} {[%emt
00:00:04]} 21. Nxd8 {[%clk 00:25:36]} {[%emt 00:00:16]} Rxd8 {[%clk 00:01:22]}
{[%emt 00:01:50]} 22. Rad1 {[%clk 00:24:58]} {[%emt 00:01:05]} Bxe7 {[%clk
00:01:03]} {[%emt 00:00:51]} 23. Bxe7 {[%clk 00:24:01]} {[%emt 00:01:26]} Rxd1
{[%clk 00:00:47]} {[%emt 00:00:47]} 24. Rxd1 {[%clk 00:24:27]} {[%emt
00:00:02]} 1-0

[Event "Allsvenskan Div I 3 2021/2022: SS Manhem - Linköpings ASS"]
[Site "Schackcentrum, Vegatan 20, Gothenburg, Sweden"]
[Date "2022.04.09"]
[Round "1.5"]
[White "Axelsson, Tom"]
[Black "Berggren Torell, Harald"]
[Result "0-1"]
[TimeControl "90 minutes for 40 moves + 30 minutes for the rest of the game + 30 seconds per move from move one."]
[WhiteFideId "1701819"]
[BlackFideId "1714031"]
[WhiteElo "2000"]
[BlackElo "2092"]

1. d4 {[%clk 01:30:47]} {[%emt 00:00:12]} d6 {[%clk 01:30:58]} {[%emt
00:00:03]} 2. Nf3 {[%clk 01:30:57]} {[%emt 00:00:20]} g6 {[%clk 01:31:26]}
{[%emt 00:00:02]} 3. Bg5 {[%clk 01:25:20]} {[%emt 00:06:07]} Nd7 {[%clk
01:31:04]} {[%emt 00:00:53]} 4. Nbd2 {[%clk 01:22:19]} {[%emt 00:03:30]} h6
{[%clk 01:30:07]} {[%emt 00:01:27]} 5. Bh4 {[%clk 01:20:15]} {[%emt 00:02:34]}
Ngf6 {[%clk 01:29:09]} {[%emt 00:01:28]} 6. e4 {[%clk 01:20:08]} {[%emt
00:00:37]} g5 {[%clk 01:29:18]} {[%emt 00:00:22]} 7. Bg3 {[%clk 01:20:21]}
{[%emt 00:00:17]} Nh5 {[%clk 01:29:42]} {[%emt 00:00:06]} 8. Bc4 {[%clk
01:17:06]} {[%emt 00:03:45]} e6 {[%clk 01:19:07]} {[%emt 00:11:04]} 9. Qe2
{[%clk 01:09:53]} {[%emt 00:07:43]} Bg7 {[%clk 01:17:33]} {[%emt 00:02:04]} 10.
O-O {[%clk 01:02:29]} {[%emt 00:07:53]} Nxg3 {[%clk 01:16:54]} {[%emt
00:01:09]} 11. hxg3 {[%clk 01:02:49]} {[%emt 00:00:10]} g4 {[%clk 01:17:07]}
{[%emt 00:00:18]} 12. Nh4 {[%clk 01:02:56]} {[%emt 00:00:23]} Bxd4 {[%clk
01:15:45]} {[%emt 00:01:52]} 13. c3 {[%clk 00:50:35]} {[%emt 00:12:51]} Bb6
{[%clk 01:00:55]} {[%emt 00:15:20]} 14. Qxg4 {[%clk 00:48:28]} {[%emt
00:02:36]} Qg5 {[%clk 01:00:04]} {[%emt 00:01:21]} 15. Qxg5 {[%clk 00:29:47]}
{[%emt 00:19:12]} hxg5 {[%clk 01:00:25]} {[%emt 00:00:09]} 16. Nhf3 {[%clk
00:30:07]} {[%emt 00:00:10]} g4 {[%clk 00:58:56]} {[%emt 00:01:59]} 17. Nh4
{[%clk 00:29:00]} {[%emt 00:01:38]} Ne5 {[%clk 00:55:21]} {[%emt 00:04:04]} 18.
Be2 {[%clk 00:25:21]} {[%emt 00:04:09]} Bd7 {[%clk 00:54:29]} {[%emt 00:01:22]}
19. Nc4 {[%clk 00:23:17]} {[%emt 00:02:34]} Nxc4 {[%clk 00:54:12]} {[%emt
00:00:47]} 20. Bxc4 {[%clk 00:23:41]} {[%emt 00:00:06]} Ke7 {[%clk 00:53:07]}
{[%emt 00:01:36]} 21. Kh2 {[%clk 00:19:09]} {[%emt 00:05:02]} Rag8 {[%clk
00:49:28]} {[%emt 00:04:09]} 22. f4 {[%clk 00:15:36]} {[%emt 00:04:02]} c6
{[%clk 00:30:17]} {[%emt 00:19:42]} 23. Rae1 {[%emt 00:05:35]} Rh5 {[%clk
00:28:23]} 24. f5 {[%clk 00:06:55]} {[%emt 00:06:30]} Bc7 {[%clk 00:26:37]}
{[%emt 00:02:16]} 25. fxe6 {[%clk 00:06:34]} {[%emt 00:00:51]} fxe6 {[%clk
00:25:34]} {[%emt 00:01:33]} 26. Bd3 {[%clk 00:06:31]} {[%emt 00:00:33]} d5
{[%clk 00:22:30]} {[%emt 00:03:35]} 27. e5 {[%clk 00:06:32]} {[%emt 00:00:30]}
Be8 {[%clk 00:20:43]} {[%emt 00:02:16]} 28. Re3 {[%clk 00:05:39]} {[%emt
00:01:22]} Rxe5 {[%clk 00:20:16]} {[%emt 00:00:57]} 29. Rxe5 {[%clk 00:04:55]}
{[%emt 00:01:14]} Bxe5 {[%clk 00:20:44]} {[%emt 00:00:03]} 30. Re1 {[%clk
00:04:50]} {[%emt 00:00:35]} Kd6 {[%clk 00:21:01]} {[%emt 00:00:13]} 31. Re3
{[%clk 00:05:04]} {[%emt 00:00:16]} Rh8 {[%clk 00:19:37]} {[%emt 00:01:54]} 32.
Kg1 {[%clk 00:04:56]} {[%emt 00:00:37]} d4 {[%clk 00:19:49]} {[%emt 00:00:18]}
33. Re4 {[%clk 00:05:08]} {[%emt 00:00:19]} dxc3 {[%clk 00:19:12]} {[%emt
00:01:08]} 34. bxc3 {[%clk 00:04:48]} {[%emt 00:00:49]} Rg8 {[%clk 00:17:04]}
{[%emt 00:02:38]} 35. Kf2 {[%clk 00:02:37]} {[%emt 00:02:41]} Bxc3 {[%clk
00:10:14]} {[%emt 00:07:20]} 36. Rxe6+ {[%clk 00:01:44]} {[%emt 00:01:23]} Kxe6
{[%emt 00:00:08]} 37. Bc4+ {[%clk 00:02:12]} {[%emt 00:00:01]} Kf6 {[%clk
00:10:37]} {[%emt 00:00:30]} 38. Bxg8 {[%clk 00:02:41]} {[%emt 00:00:01]} Bd4+
{[%clk 00:10:57]} {[%emt 00:00:10]} 39. Ke2 {[%clk 00:02:53]} {[%emt 00:00:18]}
Be5 {[%clk 00:10:34]} {[%emt 00:00:53]} 40. Bh7 {[%clk 00:02:24]} {[%emt
00:00:58]} Bf7 {[%clk 00:09:38]} {[%emt 00:01:25]} 41. a4 {[%clk 00:27:53]}
{[%emt 00:05:02]} Bb3 {[%clk 00:37:41]} {[%emt 00:02:28]} 42. a5 {[%clk
00:27:46]} {[%emt 00:00:37]} Bxg3 {[%clk 00:37:57]} {[%emt 00:00:14]} 43. Nf5
{[%clk 00:28:04]} {[%emt 00:00:11]} Bc7 {[%clk 00:38:12]} {[%emt 00:00:15]} 44.
Ne3 {[%clk 00:28:10]} {[%emt 00:00:24]} g3 {[%clk 00:37:34]} {[%emt 00:01:08]}
45. a6 {[%clk 00:27:40]} {[%emt 00:01:01]} bxa6 {[%clk 00:36:46]} {[%emt
00:01:19]} 46. Be4 {[%clk 00:28:01]} {[%emt 00:00:08]} Ba4 {[%clk 00:37:11]}
{[%emt 00:00:05]} 47. Kf3 {[%clk 00:27:58]} {[%emt 00:00:33]} a5 {[%clk
00:37:12]} {[%emt 00:00:29]} 48. Bd3 {[%clk 00:25:11]} {[%emt 00:03:17]} Ke6
{[%clk 00:36:21]} {[%emt 00:01:21]} 49. Ke4 {[%clk 00:24:35]} {[%emt 00:01:05]}
Bb3 {[%clk 00:35:18]} {[%emt 00:01:33]} 50. Nc4 {[%clk 00:21:39]} {[%emt
00:03:27]} a4 {[%clk 00:35:24]} {[%emt 00:00:24]} 51. Kd4 {[%clk 00:22:02]}
{[%emt 00:00:06]} Bd6 {[%clk 00:34:36]} {[%emt 00:01:18]} 52. Kc3 {[%clk
00:20:33]} {[%emt 00:01:58]} c5 {[%clk 00:33:34]} {[%emt 00:01:33]} 53. Be2
{[%clk 00:18:52]} {[%emt 00:02:11]} Be5+ {[%clk 00:33:29]} {[%emt 00:00:35]} 54.
Kd3 {[%clk 00:17:34]} {[%emt 00:01:49]} Bb2 {[%clk 00:30:22]} {[%emt 00:03:37]}
55. Na5 {[%clk 00:08:11]} {[%emt 00:09:52]} Bd5 {[%clk 00:30:08]} {[%emt
00:00:45]} 56. Kc2 {[%clk 00:06:41]} {[%emt 00:01:59]} a3 {[%clk 00:28:36]}
{[%emt 00:02:02]} 57. Nc4 {[%clk 00:06:56]} {[%emt 00:00:15]} Bxg2 {[%clk
00:28:53]} {[%emt 00:00:13]} 58. Bg4+ {[%clk 00:05:53]} {[%emt 00:01:33]} Ke7
{[%clk 00:29:06]} {[%emt 00:00:16]} 59. Ne3 {[%clk 00:02:31]} {[%emt 00:03:53]}
Be4+ {[%clk 00:29:30]} {[%emt 00:00:05]} 60. Kb3 {[%clk 00:02:48]} {[%emt
00:00:14]} g2 {[%clk 00:29:49]} {[%emt 00:00:10]} 61. Nxg2 {[%clk 00:02:18]}
{[%emt 00:01:00]} Bxg2 {[%clk 00:30:16]} {[%emt 00:00:03]} 62. Be2 {[%clk
00:02:15]} {[%emt 00:00:34]} Bd5+ {[%clk 00:30:33]} {[%emt 00:00:12]} 63. Kc2
{[%clk 00:02:44]} {[%emt 00:00:01]} Kd6 {[%clk 00:30:52]} {[%emt 00:00:12]} 64.
Kb1 {[%clk 00:02:51]} {[%emt 00:00:23]} Bg7 {[%clk 00:31:12]} {[%emt 00:00:10]}
0-1

[Event "Allsvenskan Div I 3 2021/2022: SS Manhem - Linköpings ASS"]
[Site "Schackcentrum, Vegatan 20, Gothenburg, Sweden"]
[Date "2022.04.09"]
[Round "1.6"]
[White "Bengtsson, Jonas"]
[Black "Halvarsson, Peter"]
[Result "0-1"]
[TimeControl "90 minutes for 40 moves + 30 minutes for the rest of the game + 30 seconds per move from move one."]
[WhiteFideId "1715135"]
[BlackFideId "1701843"]
[WhiteElo "2092"]
[BlackElo "1939"]

1. d4 {[%clk 01:30:56]} {[%emt 00:00:02]} g6 {[%clk 01:30:34]} {[%emt
00:00:27]} 2. c4 {[%clk 01:31:18]} {[%emt 00:00:07]} Bg7 {[%clk 01:31:00]}
{[%emt 00:00:05]} 3. Nf3 {[%clk 01:31:42]} {[%emt 00:00:06]} c5 {[%clk
01:31:22]} {[%emt 00:00:08]} 4. e4 {[%clk 01:27:55]} {[%emt 00:04:17]} cxd4
{[%clk 01:30:57]} {[%emt 00:00:55]} 5. Nxd4 {[%clk 01:28:18]} {[%emt 00:00:07]}
Nc6 {[%clk 01:30:54]} {[%emt 00:00:32]} 6. Be3 {[%clk 01:28:42]} {[%emt
00:00:06]} d6 {[%clk 01:31:02]} {[%emt 00:00:23]} 7. Nc3 {[%clk 01:28:38]}
{[%emt 00:00:34]} Nf6 {[%clk 01:31:25]} {[%emt 00:00:07]} 8. Be2 {[%clk
01:28:57]} {[%emt 00:00:11]} Bd7 {[%clk 01:30:50]} {[%emt 00:01:04]} 9. O-O
{[%clk 01:28:53]} {[%emt 00:00:35]} O-O {[%clk 01:31:13]} {[%emt 00:00:08]} 10.
Qd2 {[%clk 01:28:04]} {[%emt 00:01:17]} Ng4 {[%clk 01:28:16]} {[%emt 00:03:27]}
11. Bxg4 {[%clk 01:27:47]} {[%emt 00:00:47]} Bxg4 {[%clk 01:28:40]} {[%emt
00:00:06]} 12. Rac1 {[%clk 01:20:57]} {[%emt 00:07:19]} Re8 {[%clk 01:09:51]}
{[%emt 00:19:20]} 13. b3 {[%clk 01:14:24]} {[%emt 00:07:03]} Qa5 {[%clk
01:03:43]} {[%emt 00:06:38]} 14. f3 {[%clk 01:10:34]} {[%emt 00:04:20]} Bd7
{[%clk 00:59:09]} {[%emt 00:05:04]} 15. Rfd1 {[%clk 01:10:53]} {[%emt
00:00:11]} Rad8 {[%clk 00:51:41]} {[%emt 00:07:58]} 16. Ncb5 {[%clk 01:00:12]}
{[%emt 00:11:11]} Qxd2 {[%clk 00:46:59]} {[%emt 00:05:12]} 17. Rxd2 {[%clk
01:00:29]} {[%emt 00:00:12]} a6 {[%clk 00:28:55]} {[%emt 00:18:35]} 18. Nxc6
{[%clk 00:50:09]} {[%emt 00:10:50]} Bxc6 {[%clk 00:23:31]} {[%emt 00:05:54]} 19.
Nc7 {[%clk 00:47:43]} {[%emt 00:02:56]} Rf8 {[%clk 00:23:49]} {[%emt 00:00:12]}
20. Rdc2 {[%clk 00:47:38]} {[%emt 00:00:35]} Rd7 {[%clk 00:22:25]} {[%emt
00:01:55]} 21. Nd5 {[%clk 00:47:52]} {[%emt 00:00:15]} f5 {[%clk 00:19:28]}
{[%emt 00:03:28]} 22. exf5 {[%clk 00:44:44]} {[%emt 00:03:37]} Rxf5 {[%clk
00:18:40]} {[%emt 00:01:18]} 23. Nb6 {[%clk 00:44:06]} {[%emt 00:01:07]} Rd8
{[%clk 00:18:40]} {[%emt 00:00:31]} 24. b4 {[%clk 00:43:50]} {[%emt 00:00:46]}
g5 {[%clk 00:14:51]} {[%emt 00:04:19]} 25. a4 {[%clk 00:42:59]} {[%emt
00:01:21]} Re5 {[%clk 00:12:29]} {[%emt 00:02:53]} 26. Bf2 {[%clk 00:40:06]}
{[%emt 00:03:22]} Be8 {[%clk 00:11:21]} {[%emt 00:01:38]} 27. Nd5 {[%clk
00:32:53]} {[%emt 00:07:43]} Bg6 {[%clk 00:11:18]} {[%emt 00:00:33]} 28. Rd2
{[%clk 00:32:37]} {[%emt 00:00:46]} Rc8 {[%clk 00:07:48]} {[%emt 00:04:00]} 29.
Bd4 {[%clk 00:31:34]} {[%emt 00:01:33]} Rxd5 {[%clk 00:08:02]} {[%emt
00:00:17]} 0-1